Cogmind - Beta 9.6 @@@ ROGUE MODE // 2020.05.31 @ 21:31:37 Player: pGoos Result: Destroyed by G-47 Trooper with Particle Gun Performance ------------- Evolutions (0) 0 Regions Visited (1) 200 Robots Destroyed (3) 15 Value Destroyed (73) 73 Prototype IDs (0) 0 Alien Tech Used (0) 0 Bonus (0) 0 TOTAL SCORE: 288 Bonus ------- None Cogmind --------- Core Integrity 0/250 Matter 300/300 Energy 100/100 System Corruption 0% Temperature Cool (9) Movement Core (50) Location -10/Materials Parts ------- > --- POWER (1) -------- (None) > --- PROPULSION (2) --- (None) > --- UTILITY (2) ------ Signal Interpreter > --- WEAPON (2) ------- (None) > --- INVENTORY (4) ---- Light Ion Engine Small Storage Unit Peak State ------------ > --- POWER ------------ Light Ion Engine > --- PROPULSION ------- Aluminum Leg Aluminum Leg > --- UTILITY ---------- Small Storage Unit Sensor Array > --- WEAPON ----------- Small Laser Light Assault Rifle > --- INVENTORY -------- Light Ion Engine EM Pulse Gun [Rating: 7] Favorites ----------- Power Light Ion Engine Engine Light Ion Engine Propulsion Aluminum Leg Leg Aluminum Leg Utility Sensor Array Device Sensor Array Storage Small Storage Unit Processor Signal Interpreter Weapon Small Laser Energy Gun Small Laser Ballistic Gun Light Assault Rifle Build | -11 -10 ------- Run | Scr Mat Slots Evolved . | . . Power . | . . Propulsion . | . . Utility . | . . Weapon . | . . Parts Attached 10 | 6 4 Power 1 | 1 . Engine 1 | 1 . Core . | . . Reactor . | . . Propulsion 2 | 2 . Treads . | . . Leg 2 | 2 . Wheel . | . . Hover . | . . Flight . | . . Utility 3 | 1 2 Device 1 | . 1 Storage 1 | 1 . Processor 1 | . 1 Hackware . | . . Protection . | . . Artifact . | . . Weapon 4 | 2 2 Energy Gun 2 | 1 1 Energy Cannon . | . . Ballistic Gun 2 | 1 1 Ballistic Cannon . | . . Launcher . | . . Special Weapon . | . . Impact Weapon . | . . Slashing Weapon . | . . Piercing Weapon . | . . Special Melee Weapon . | . . Unidentified Prototypes . | . . Parts Lost 3 | . 3 Power . | . . Propulsion . | . . Utility 1 | . 1 Weapon 2 | . 2 Highest Loss Streak 3 | . 3 Average Slot Usage (%) 44 | . 44 Engine 4 | . 4 Leg 3 | . 3 Device 13 | . 13 Storage 1 | . 1 Processor 12 | . 12 Energy Gun 5 | . 5 Ballistic Gun 5 | . 5 Naked Turns . | . . Heaviest Build 10 | 9 10 Greatest Support 20 | 20 20 Greatest Overweight (x) 1 | . 1 Average Overweight (x) . | . . Largest Inventory Capacity 6 | 6 6 Average Capacity 4 | 5 4 Most Carried 4 | 2 4 Average Carried 2 | 1 3 Final Capacity 6 | 6 4 Final Carried 2 | 2 2 Class Distribution -------------------- 100% | Mutant Dominant Class ---------------- Mutant | -10/Materials Resources | -11 -10 ----------- Run | Scr Mat Matter Collected 312 | 220 92 Remotely . | . . Salvage Created 92 | . 92 Parts 9 | . 9 Haulers Intercepted . | . . Recyclers Shooed 1 | . 1 Parts Field Recycled . | . . Retrieved Matter . | . . Parts Self-Destructed . | . . Prevented . | . . Kills | -11 -10 ------- Run | Scr Mat Combat Hostiles Destroyed 2 | . 2 Guns 2 | . 2 Classes Destroyed 2 | . 2 Builder 1 | . 1 Grunt 2 | . 2 Best Kill Streak 3 | . 3 Combat Bots Only 2 | . 2 Max Kills in Single Turn 1 | . 1 Gunslinging . | . . Exploded . | . . Melee . | . . Uniques/NPCs Destroyed . | . . Combat | -11 -10 -------- Run | Scr Mat Damage Taken 418 | . 418 Core 262 | . 262 Absorbed by Shields . | . . Core Remaining (%) 100 | 100 . Volleys Fired 16 | . 16 Largest 2 | . 2 Hottest 60 | . 60 Shots Fired 31 | . 31 Gun 31 | . 31 Cannon . | . . Launcher . | . . Special . | . . Kinetic 15 | . 15 Thermal 16 | . 16 Explosive . | . . Electromagnetic . | . . Robot Hit Streak 2 | . 2 Robot Miss Streak 2 | . 2 Penetration Max . | . . Secondary Targets . | . . Shots Hit Robots 14 | . 14 Core Hits 7 | . 7 Critical Hits . | . . Critical Kills . | . . Critical Parts Destroyed . | . . Melee Attacks . | . . Impact . | . . Slashing . | . . Piercing . | . . Sneak Attacks . | . . Combat Hostiles . | . . Follow-up Attacks . | . . Damage Inflicted 165 | . 165 Guns 158 | . 158 Cannons . | . . Explosions . | . . Melee . | . . Ramming 7 | . 7 Kinetic 45 | . 45 Thermal 113 | . 113 Explosive . | . . Electromagnetic . | . . Impact . | . . Slashing . | . . Piercing . | . . Highest Corruption . | . . Average Corruption . | . . Corruption Purged . | . . Overload Shots . | . . Overflow Damage . | . . Projectiles . | . . Explosions . | . . Melee . | . . Knockbacks . | . . Impact . | . . Kinetic . | . . Secondary . | . . Self-Inflicted Damage 3 | . 3 Shots . | . . Rammed 2 | . 2 Targets Rammed 2 | . 2 Kicked . | . . Crushed . | . . Highest Temperature 32 | . 32 Average Temperature 14 | . 14 Received Heat Transfer 228 | . 228 Siege Activations . | . . Robots Corrupted . | . . Combat Hostiles . | . . Parts Fried . | . . Impact Corruptions . | . . Robots Melted . | . . Combat Hostiles . | . . Parts Melted . | . . Heat Transferred 250 | . 250 Parts Sabotaged . | . . Parts Stolen . | . . Parts Stripped . | . . Power Chain Reactions . | . . Missiles Intercepted . | . . Alert | -11 -10 ------- Run | Scr Mat Peak Influence 89 | . 89 Average Influence 28 | . 34 Maximum Alert Level . | . . Low Security (%) 100 | 100 100 Level 1 . | . . Level 2 . | . . Level 3 . | . . Level 4 . | . . Level 5 . | . . High Security . | . . Max Security . | . . Squads Dispatched 3 | . 3 Investigation 2 | . 2 Extermination . | . . Reinforcement 1 | . 1 Assault . | . . Garrison . | . . Intercept . | . . Construction Impeded . | . . Haulers Reinforced . | . . Stealth | -11 -10 --------- Run | Scr Mat Distress Signals 1 | . 1 Communications Jammed . | . . Distress Signals . | . . Times Spotted 13 | . 13 Peak Tracking Total 6 | . 6 Tactical Retreats 2 | . 2 Traps | -11 -10 ------- Run | Scr Mat Traps Triggered 1 | . 1 Indirectly . | . . Trap Hack Attempts . | . . Triggered . | . . Disarmed . | . . Reprogrammed . | . . Reused . | . . Traps Extracted . | . . Installed . | . . Triggered . | . . Machines | -11 -10 ---------- Run | Scr Mat Machines Disabled . | . . Max in Single Turn . | . . Machines Sabotaged . | . . Garrisons Compromised . | . . Overloaded Fab Kills . | . . Fab Network Shutdowns . | . . Hacking | -11 -10 --------- Run | Scr Mat Machines Accessed 3 | . 3 Terminals 2 | . 2 Fabricators . | . . Repair Stations . | . . Recycling Units 1 | . 1 Scanalyzers . | . . Garrison Access . | . . Total Hacks 9 | . 9 Successful 6 | . 6 Failed 3 | . 3 Catastrophic . | . . Database Lockouts . | . . Manual . | . . Terminals 6 | . 6 Fabricators . | . . Repair Stations . | . . Recycling Units 3 | . 3 Scanalyzers . | . . Garrison Access . | . . Terminal Hacks 4 | . 4 Alert Level 1 | . 1 Locate Traps 1 | . 1 Maintenance Status 1 | . 1 Zone Layout 1 | . 1 Fabricator Hacks . | . . Repair Station Hacks . | . . Recycling Unit Hacks 2 | . 2 Process 1 | . 1 Report Inventory 1 | . 1 Scanalyzer . | . . Garrison Access Hacks . | . . Unauthorized Hacks . | . . Terminals . | . . Fabricators . | . . Repair Stations . | . . Recycling Units . | . . Scanalyzers . | . . Garrison Access . | . . Data Cores Recovered . | . . Used . | . . Hacking Detections 3 | . 3 Full Trace Events 2 | . 2 Feedback Events . | . . Feedback Blocked . | . . Robot Schematics Acquired . | . . Robots Built . | . . Matter . | . . Time . | . . Total Robot Build Rating . | . . Part Schematics Acquired . | . . Parts Built . | . . Matter . | . . Time . | . . Total Part Build Rating . | . . Parts Repaired . | . . Time . | . . Parts Recycled . | . . Recycled Matter 28 | . 28 Retrieved Matter . | . . Retrieved Components . | . . Parts Scanalyzed . | . . Part Schematics Acquired . | . . Parts Damaged . | . . Bothacking | -11 -10 ------------ Run | Scr Mat Used RIF Installer . | . . Robots Hacked . | . . Non-combat . | . . Combat . | . . Robot Hacks Applied . | . . Relay Couplers Released . | . . Robots Rewired . | . . Allies Hacked . | . . Hacks Repelled . | . . Allies | -11 -10 -------- Run | Scr Mat Total Allies . | . . Largest Group . | . . Highest-Rated Group . | . . Highest-Rated Ally . | . . Total Orders . | . . Ally Attacks . | . . Total Damage . | . . Kills . | . . Allies Corrupted . | . . Allies Melted . | . . Intel | -11 -10 ------- Run | Scr Mat Robot Analysis Total . | . . Derelict Logs Recovered . | . . Drone Launches . | . . Drone Recoveries . | . . Exploration | -11 -10 ------------- Run | Scr Mat Turns Passed 344 | 61 283 Spaces Moved 360 | 44 316 Core 298 | 5 293 Treads . | . . Legs 62 | 39 23 Wheels . | . . Hover . | . . Flight . | . . Fastest Speed 50 | 50 50 Average Speed 68 | 112 62 Slowest Speed 120 | 120 120 Overloaded Moves . | . . Propulsion Burnouts . | . . Robots Hopped . | . . Cave-ins Triggered . | . . Exploration Rate (%) 22 | 4 41 Regions Visited 1 Branch Regions . Pre-discovered Areas . | . . Known Exits Taken . | . . Unknown Exits Taken 1 | 1 . Scrap Searched . | . . Spaces Dug . | . . Terrain Destroyed . | . . Melee . | . . Projectile . | . . AOE . | . . Actions | -11 -10 --------- Run | Scr Mat Total 429 | 52 377 Wait 31 | 1 30 Move 359 | 43 316 Hop . | . . Pick Up 4 | 2 2 Fast Attach 7 | 6 1 Attach 3 | . 3 Detach 2 | . 2 Swap . | . . Drop 5 | . 5 Fire 16 | . 16 Melee . | . . Ram 2 | . 2 Kick . | . . Crush . | . . Escape Stasis . | . . Rewire . | . . Trap . | . . Miscellaneous . | . . Route ------- -11/Scrapyard -10/Materials (discovered 1 exit: [*Min]) History --------- Turn | Location | Event 32 | -11/Scrapyard | Discovered new exit (range 16) 62 | -11/Scrapyard | Entered Materials 162 | -10/Materials | Discovered new exit (range 15) 315 | -10/Materials | Build established: Mutant 328 | -10/Materials | Core integrity fell below 50% 340 | -10/Materials | Core integrity fell below 20% 345 | -10/Materials | Destroyed by G-47 Trooper with Particle Gun Last Messages --------------- 3 Tunnelers 1 Recycler Downloaded coordinate data. >>Alert(Check) Current Alert Level: Low Security 00246_ Connecting with Terminal... 00246_ ALERT: Suspicious activity at Terminal M003. Dispatching Investigation squad. 00269_ G-34 Mercenary destroyed. 00283_ U-05 Engineer destroyed. 00294_ Acquired 16 matter. 00312_ K-01 Serf collects debris. 00325_ Lgt. Assault Rifle destroyed. 00329_ Sml. Laser destroyed. 00331_ Sensor Array destroyed. 00338_ Slammed into G-34 Mercenary. 00338_ Destabilizing: System interference. 00338_ Signal Interpreter temporarily disabled. 00339_ Slammed into G-34 Mercenary. 00339_ Signal Interpreter permanently disabled. 00339_ Destabilizing: Short circuit. Map ----- +----------------------------------------------------+ | ??????# #??????????# ## """ #? | | ?????## ##???####### ## """ #? | | ?????# ##### ## #? | | ?????# + """ #? | | ?????# ## """ #? | | ?????# """ ## """ #? | | ?????# """ ## #? | | ?????### """ ## #? | | ???????# ## #? | | ???????# ##########? | | ######## #?????????? | | # # ????? | | # # a """ ######????? | | # !! # """"" #?????????? | | # !! # """"" ""#?????????? | | # ! # """"" T"#?????????? | | # = # """ ""#?????????? | | # + / ????????? | | # #^ t #?????????? | | # #### ######### ##?????????? | | # #??# #???????# #??????????? | | # #??# #???????# #??????????? | | # "Y" #??# ######### #??????????? | | # """ #??# # """ ## #??????????? | | ########### r # "T" ## #??????????? | | ???# #@ # ## #??????????? | | ???# # # ## #??????????? | | ???# "" + + !## #??????????? | | ???# T"^# # ## #??????????? | | ???# "" # ######### #??????????? | | ???# # ####/##?????????? | | ???##+##+## g g # #?????????? | | ????# g% # #?????????? | | ???#########g### # #?????????? | | ???# % # # """ #?????????? | | ???# # #[""" #?????????? | | ???# # #%""" #?????????? | | ???# / %+!* #?????????? | | ???# # !#*""" #?????????? | | ???# # =# """ #?????????? | | ???# # # """ #?????????? | | ???############# # #?????????? | | ?##########????# # #?????????? | | ?# #????# #######?????????? | | ?# """ ""###### #???????????????? | | ?#! """ T"# #???????????????? | | ?# """ ""# #???????????????? | | ?# + #???????????????? | | ?# """ # ###+#######??????????? | | ?# """ # # #??????????? | +----------------------------------------------------+ Best States ------------- Heat Dissipation 25 Energy Generation 10 Energy Capacity 125 Matter Stores 300 Matter Capacity 300 Sight Range 16 Robot Scan Range 10 Terrain Scan Density 10 Evasion (%) 50 Item Schematics ----------------- None Robot Schematics ------------------ None Fabricated ------------ Nothing Alien Tech Used ----------------- None Achievements -------------- None Challenges ------------ None Game ------ Seed BattleTargetCompactor Manual? 0 Play Time 00:11:47 Cumulative 23.9 hours Start 2020.05.31 @ 21:16:18 End 2020.05.31 @ 21:31:37 Sessions 1 Manual Loads 0 Difficulty Rogue Special Mode None Game No. 34 Rogue 34 Adventurer 0 Explorer 0 Win Type - Total 0 Types 0/0/0/0/0/0/0 Lore% 20 Gallery% 23 Achievement% 17 Wizard Run 0 Options --------- ASCII 0 Keyboard 0 Movement Mouse Keybinds 0 Fullscreen 2 Font 24/Terminus Map View 113x50 Tactical HUD 1 Map Filters NONE Filters NONE Steam 1 RUN: ebabd29c-2b9c-4a2a-b2ac-597de9f33b49